[Event "44th Chess Olympiad Open 2022"]
[Site "Chennai"]
[Date "2022.08.08"]
[Round "10.25"]
[White "Adly, Ahmed"]
[Black "Risteski, Emil"]
[Result "1-0"]
[WhiteElo "2582"]
[BlackElo "2405"]
[Annotator "RC"]
[PlyCount "138"]
[EventDate "2022.??.??"]
[TimeControl "60"]

1. Nf3 {[%emt 0:00:06]} Nf6 {[%emt 0:00:38]} 2. d4 {[%emt 0:00:07]} g6 {
[%emt 0:00:05]} 3. c4 {[%emt 0:00:05]} Bg7 {[%emt 0:00:06]} 4. g3 {[%emt 0:00:
00]} O-O {[%emt 0:00:09]} 5. Bg2 {[%emt 0:00:01]} d6 {[%emt 0:00:09]} 6. O-O {
[%emt 0:00:04]} Nc6 {[%emt 0:00:04]} 7. Nc3 {[%emt 0:00:03]} e5 {[%emt 0:00:05]
} 8. dxe5 {[%emt 0:00:03]} dxe5 {[%emt 0:00:06]} 9. Qa4 {[%emt 0:00:04]} Bd7 {
[%emt 0:06:12]} 10. Rd1 {[%emt 0:00:02]} Qc8 {[%emt 0:07:27]} 11. Bg5 {[%emt 0:
00:00]} Re8 {[%emt 0:09:44]} 12. Bxf6 {[%emt 0:02:57]} Bxf6 {[%emt 0:00:58]}
13. Nd5 {[%emt 0:05:21]} Bd8 {[%emt 0:10:04]} 14. Qa3 {[%emt 0:00:29]} Bg4 {
[%emt 0:06:19]} 15. Qe3 {[%emt 0:07:55]} Bxf3 {[%emt 0:06:31]} 16. exf3 {
[%emt 0:01:40]} Qe6 {[%emt 0:13:01]} 17. f4 {[%emt 0:01:01]} Nd4 {[%emt 0:00:
00]} 18. Qxe5 {[%emt 0:01:55]} c5 {[%emt 0:05:40]} 19. b4 {[%emt 0:11:07]} Nc6
{[%emt 0:02:49]} 20. Qb2 {[%emt 0:06:31]} Nxb4 {[%emt 0:00:50]} 21. Rab1 {
[%emt 0:01:44]} Rb8 {[%emt 0:02:57]} 22. Nxb4 {[%emt 0:02:15]} Bf6 {[%emt 0:00:
00]} 23. Bd5 {[%emt 0:03:09]} Bxb2 {[%emt 0:01:49]} 24. Bxe6 {[%emt 0:00:09]}
Rxe6 {[%emt 0:00:54]} 25. Rxb2 {[%emt 0:00:43]} cxb4 {[%emt 0:00:03]} 26. Rxb4
{[%emt 0:00:05]} b6 {[%emt 0:01:38]} 27. c5 {[%emt 0:03:51]} Rc8 {[%emt 0:00:
00]} 28. cxb6 {[%emt 0:02:50]} axb6 {[%emt 0:00:30]} 29. Rd2 {[%emt 0:00:08]}
Ra8 {[%emt 0:00:56]} 30. Kf1 {[%emt 0:01:07]} Kg7 {[%emt 0:00:44]} 31. Rb5 {
[%emt 0:00:36]} Rc6 {[%emt 0:03:43]} 32. Ke2 {[%emt 0:00:19]} Ra6 {[%emt 0:00:
00]} 33. Kd1 {[%emt 0:00:34]} Kf6 {[%emt 0:02:03]} 34. h4 {[%emt 0:00:22]} h5 {
[%emt 0:01:48]} 35. Rdb2 {[%emt 0:00:58]} Ke6 {[%emt 0:01:58]} 36. Rg5 {
[%emt 0:03:05]} Kf6 {[%emt 0:00:59]} 37. Rd2 {[%emt 0:00:54]} Ra3 {[%emt 0:00:
00]} 38. f5 {[%emt 0:00:39]} Rac3 {[%emt 0:00:18]} 39. fxg6 {[%emt 0:00:29]}
fxg6 {[%emt 0:00:07]} 40. Rb5 {[%emt 0:00:25]} Rc1+ {[%emt 0:01:08]} 41. Ke2 {
[%emt 0:30:02]} Re6+ {[%emt 0:07:59]} 42. Kf3 {[%emt 0:00:00]} Rc3+ {[%emt 0:
00:00]} 43. Kg2 {[%emt 0:00:00]} Ke7 {[%emt 0:04:04]} 44. Rbb2 {[%emt 0:00:00]}
Kf6 {[%emt 0:02:02]} 45. Rd7 {[%emt 0:00:00]} Rcc6 {[%emt 0:01:06]} 46. Rb7 {
[%emt 0:00:00]} Rcd6 {[%emt 0:00:27]} 47. Rb3 {[%emt 0:00:00]} Rc6 {[%emt 0:00:
00]} 48. a3 {[%emt 0:00:00]} Rcd6 {[%emt 0:01:04]} 49. Rb4 {[%emt 0:00:00]} Rc6
{[%emt 0:01:05]} 50. a4 {[%emt 0:00:07]} Rcd6 {[%emt 0:00:31]} 51. Kh2 {
[%emt 0:00:00]} Rc6 {[%emt 0:01:12]} 52. Kh3 {[%emt 0:00:00]} Rcd6 {[%emt 0:00:
00]} 53. Kg2 {[%emt 0:00:00]} Rc6 {[%emt 0:00:52]} 54. Kf3 {[%emt 0:00:00]}
Rc3+ {[%emt 0:00:31]} 55. Kf4 {[%emt 0:00:00]} Rc5 {[%emt 0:00:27]} 56. g4 {
[%emt 0:00:00]} hxg4 {[%emt 0:00:16]} 57. R7xb6 {[%emt 0:04:56]} Rf5+ {[%emt 0:
00:00]} 58. Kxg4 {[%emt 0:00:00]} Rxf2 {[%emt 0:00:40]} 59. Rxe6+ {[%emt 0:00:
00]} Kxe6 {[%emt 0:00:04]} 60. Kg5 {[%emt 0:00:00]} Ra2 {[%emt 0:02:39]} 61.
Kxg6 {[%emt 0:00:00]} Rg2+ {[%emt 0:00:02]} 62. Kh6 {[%emt 0:00:00]} Kf6 {
[%emt 0:00:13]} 63. a5 {[%emt 0:00:41]} Ra2 {[%emt 0:00:09]} 64. Rb6+ {[%emt 0:
00:00]} Kf7 {[%emt 0:00:13]} 65. a6 {[%emt 0:00:00]} Ra5 {[%emt 0:00:07]} 66.
h5 {[%emt 0:00:00]} Ra1 {[%emt 0:00:14]} 67. Rb7+ {[%emt 0:00:28]} Kf6 {
[%emt 0:00:21]} 68. a7 {[%emt 0:00:16]} Ra2 {[%emt 0:00:01]} 69. Kh7 {[%emt 0:
00:00]} Ra6 {[%emt 0:00:43]} 1-0

[Event "44th Chess Olympiad Open 2022"]
[Site "Chennai"]
[Date "2022.08.08"]
[Round "10.25"]
[White "Stanojoski, Zvonko"]
[Black "Amin, Bassem"]
[Result "0-1"]
[WhiteElo "2412"]
[BlackElo "2680"]
[Annotator "RC"]
[PlyCount "94"]
[EventDate "2022.??.??"]
[TimeControl "60"]

1. e4 {[%emt 0:00:20]} e5 {[%emt 0:00:43]} 2. Nf3 {[%emt 0:00:10]} Nc6 {
[%emt 0:00:05]} 3. Bb5 {[%emt 0:00:33]} Nge7 {[%emt 0:00:59]} 4. d4 {[%emt 0:
00:00]} exd4 {[%emt 0:00:12]} 5. O-O {[%emt 0:01:27]} g6 {[%emt 0:05:41]} 6.
Nxd4 {[%emt 0:05:15]} Bg7 {[%emt 0:00:10]} 7. Nxc6 {[%emt 0:00:22]} bxc6 {
[%emt 0:01:29]} 8. Ba4 {[%emt 0:01:48]} O-O {[%emt 0:00:09]} 9. c3 {[%emt 0:00:
00]} d6 {[%emt 0:11:08]} 10. Bg5 {[%emt 0:03:06]} c5 {[%emt 0:01:11]} 11. Qd2 {
[%emt 0:00:32]} Rb8 {[%emt 0:01:11]} 12. Re1 {[%emt 0:19:20]} Be6 {[%emt 0:00:
00]} 13. e5 {[%emt 0:00:00]} h6 {[%emt 0:03:16]} 14. exd6 {[%emt 0:00:00]} cxd6
{[%emt 0:00:05]} 15. Bxh6 {[%emt 0:00:24]} Bxh6 {[%emt 0:00:31]} 16. Qxh6 {
[%emt 0:00:07]} Rxb2 {[%emt 0:00:22]} 17. Bb3 {[%emt 0:02:21]} c4 {[%emt 0:00:
00]} 18. Qc1 {[%emt 0:05:55]} Rxb1 {[%emt 0:00:19]} 19. Qxb1 {[%emt 0:00:07]}
cxb3 {[%emt 0:00:06]} 20. axb3 {[%emt 0:00:06]} Qb6 {[%emt 0:00:26]} 21. b4 {
[%emt 0:00:15]} Rc8 {[%emt 0:02:37]} 22. Ra3 {[%emt 0:03:14]} Rc7 {[%emt 0:00:
00]} 23. Qa1 {[%emt 0:03:27]} Bc4 {[%emt 0:00:54]} 24. Qc1 {[%emt 0:00:18]} Kg7
{[%emt 0:05:01]} 25. h4 {[%emt 0:01:23]} d5 {[%emt 0:01:49]} 26. Qf4 {[%emt 0:
00:00]} Rb7 {[%emt 0:02:08]} 27. h5 {[%emt 0:02:19]} gxh5 {[%emt 0:00:24]} 28.
Qe5+ {[%emt 0:00:16]} Qf6 {[%emt 0:01:52]} 29. Qxh5 {[%emt 0:04:07]} Ng6 {
[%emt 0:01:33]} 30. Re3 {[%emt 0:05:39]} a6 {[%emt 0:01:44]} 31. Rh3 {[%emt 0:
00:00]} Re7 {[%emt 0:00:43]} 32. Ra1 {[%emt 0:00:18]} Re2 {[%emt 0:04:27]} 33.
Qh6+ {[%emt 0:08:16]} Kg8 {[%emt 0:00:04]} 34. Qh7+ {[%emt 0:00:19]} Kf8 {
[%emt 0:00:01]} 35. Rf3 {[%emt 0:00:13]} Qg7 {[%emt 0:03:29]} 36. Qh3 {[%emt 0:
00:00]} Kg8 {[%emt 0:01:18]} 37. Qd7 {[%emt 0:03:16]} Re7 {[%emt 0:00:50]} 38.
Qc8+ {[%emt 0:02:42]} Qf8 {[%emt 0:00:11]} 39. Qf5 {[%emt 0:00:05]} Re5 {
[%emt 0:01:06]} 40. Qh3 {[%emt 0:01:29]} Qe7 {[%emt 0:01:03]} 41. Qh6 {[%emt 0:
00:00]} Qh4 {[%emt 0:33:19]} 42. Qxh4 {[%emt 0:03:34]} Nxh4 {[%emt 0:00:03]}
43. Rh3 {[%emt 0:00:10]} Ng6 {[%emt 0:00:13]} 44. Rd1 {[%emt 0:00:13]} Nf4 {
[%emt 0:00:41]} 45. Rh4 {[%emt 0:05:49]} Ne2+ {[%emt 0:00:26]} 46. Kh2 {
[%emt 0:00:05]} Nxc3 {[%emt 0:00:19]} 47. Rdd4 {[%emt 0:00:06]} Re4 {[%emt 0:
00:00]} 0-1

[Event "44th Chess Olympiad Open 2022"]
[Site "Chennai"]
[Date "2022.08.08"]
[Round "10.25"]
[White "Wageih, Kareim"]
[Black "Nikolovski, Nikola"]
[Result "1-0"]
[WhiteElo "2387"]
[BlackElo "2366"]
[Annotator "RC"]
[PlyCount "91"]
[EventDate "2022.??.??"]
[TimeControl "60"]

1. d4 {[%emt 0:02:06]} e6 {[%emt 0:00:17]} 2. c4 {[%emt 0:02:37]} f5 {[%emt 0:
00:00]} 3. e3 {[%emt 0:00:06]} Nf6 {[%emt 0:00:51]} 4. Bd3 {[%emt 0:00:06]} d6
{[%emt 0:04:20]} 5. Nf3 {[%emt 0:03:11]} Nc6 {[%emt 0:04:13]} 6. Nc3 {[%emt 0:
00:00]} e5 {[%emt 0:08:22]} 7. d5 {[%emt 0:04:16]} Ne7 {[%emt 0:01:05]} 8. e4 {
[%emt 0:00:03]} f4 {[%emt 0:07:40]} 9. c5 {[%emt 0:00:04]} Ng6 {[%emt 0:01:40]}
10. Bb5+ {[%emt 0:21:15]} Bd7 {[%emt 0:15:37]} 11. Qb3 {[%emt 0:19:04]} a6 {
[%emt 0:16:13]} 12. Bxd7+ {[%emt 0:03:44]} Nxd7 {[%emt 0:00:39]} 13. c6 {
[%emt 0:03:22]} Nc5 {[%emt 0:09:11]} 14. Qc2 {[%emt 0:00:25]} a5 {[%emt 0:00:
00]} 15. cxb7 {[%emt 0:00:26]} Nxb7 {[%emt 0:00:37]} 16. Na4 {[%emt 0:06:28]}
Nc5 {[%emt 0:05:53]} 17. Nxc5 {[%emt 0:00:40]} dxc5 {[%emt 0:00:06]} 18. h4 {
[%emt 0:06:01]} Bd6 {[%emt 0:01:01]} 19. Qa4+ {[%emt 0:03:25]} Kf7 {[%emt 0:00:
00]} 20. h5 {[%emt 0:04:23]} Nf8 {[%emt 0:01:57]} 21. Bd2 {[%emt 0:01:02]} h6 {
[%emt 0:02:11]} 22. O-O-O {[%emt 0:03:57]} Nd7 {[%emt 0:00:14]} 23. Nh4 {
[%emt 0:00:54]} Nb6 {[%emt 0:02:01]} 24. Qc2 {[%emt 0:00:53]} a4 {[%emt 0:00:
00]} 25. g3 {[%emt 0:01:22]} a3 {[%emt 0:01:20]} 26. gxf4 {[%emt 0:04:39]}
axb2+ {[%emt 0:00:12]} 27. Kb1 {[%emt 0:00:28]} Qb8 {[%emt 0:08:58]} 28. Rh3 {
[%emt 0:03:08]} Qa7 {[%emt 0:02:28]} 29. a3 {[%emt 0:00:01]} c4 {[%emt 0:00:45]
} 30. fxe5 {[%emt 0:01:02]} Bxa3 {[%emt 0:00:53]} 31. e6+ {[%emt 0:00:16]} Ke8
{[%emt 0:01:21]} 32. Ng6 {[%emt 0:03:59]} Rb8 {[%emt 0:00:42]} 33. Bc3 {
[%emt 0:01:00]} Bd6 {[%emt 0:00:36]} 34. Bxb2 {[%emt 0:00:11]} Na4 {[%emt 0:00:
00]} 35. Qxc4 {[%emt 0:00:40]} Rxb2+ {[%emt 0:00:49]} 36. Kc1 {[%emt 0:00:01]}
Bc5 {[%emt 0:00:36]} 37. Rb3 {[%emt 0:00:40]} Rxb3 {[%emt 0:00:29]} 38. Qxb3 {
[%emt 0:00:01]} Nb6 {[%emt 0:00:33]} 39. Qb5+ {[%emt 0:01:03]} Kd8 {[%emt 0:00:
00]} 40. Qxc5 {[%emt 0:00:13]} Re8 {[%emt 0:00:10]} 41. d6 {[%emt 0:04:01]}
Qa1+ {[%emt 0:06:21]} 42. Kd2 {[%emt 0:00:50]} Qa5+ {[%emt 0:00:32]} 43. Qxa5 {
[%emt 0:00:26]} Nc4+ {[%emt 0:00:05]} 44. Kc3 {[%emt 0:00:09]} Nxa5 {[%emt 0:
00:00]} 45. e7+ {[%emt 0:00:35]} Kd7 {[%emt 0:00:05]} 46. Ne5+ {[%emt 0:00:06]}
1-0

[Event "44th Chess Olympiad Open 2022"]
[Site "Chennai"]
[Date "2022.08.08"]
[Round "10.25"]
[White "Lazov, Toni"]
[Black "Fawzy, Adham"]
[Result "1/2-1/2"]
[WhiteElo "2374"]
[BlackElo "2471"]
[Annotator "RC"]
[PlyCount "66"]
[EventDate "2022.??.??"]
[TimeControl "60"]

1. e4 {[%emt 0:01:16]} c5 {[%emt 0:00:07]} 2. Nc3 {[%emt 0:00:56]} Nc6 {
[%emt 0:00:02]} 3. f4 {[%emt 0:00:18]} e6 {[%emt 0:03:30]} 4. Nf3 {[%emt 0:00:
00]} Nge7 {[%emt 0:02:22]} 5. d4 {[%emt 0:06:46]} cxd4 {[%emt 0:03:21]} 6. Nxd4
{[%emt 0:00:19]} d5 {[%emt 0:02:08]} 7. Be3 {[%emt 0:13:50]} Nxd4 {[%emt 0:00:
00]} 8. Qxd4 {[%emt 0:05:43]} Nc6 {[%emt 0:06:08]} 9. Bb5 {[%emt 0:04:46]} Bd7
{[%emt 0:16:11]} 10. Bxc6 {[%emt 0:03:03]} bxc6 {[%emt 0:00:41]} 11. exd5 {
[%emt 0:00:27]} cxd5 {[%emt 0:02:04]} 12. f5 {[%emt 0:21:13]} Qb6 {[%emt 0:00:
00]} 13. fxe6 {[%emt 0:01:00]} fxe6 {[%emt 0:00:48]} 14. Qd2 {[%emt 0:09:13]}
Bc5 {[%emt 0:08:02]} 15. Bxc5 {[%emt 0:00:35]} Qxc5 {[%emt 0:00:02]} 16. Rf1 {
[%emt 0:00:16]} O-O-O {[%emt 0:02:47]} 17. O-O-O {[%emt 0:00:52]} Rhf8 {
[%emt 0:05:39]} 18. Qg5 {[%emt 0:07:32]} Rxf1 {[%emt 0:04:45]} 19. Rxf1 {
[%emt 0:00:01]} Rf8 {[%emt 0:00:19]} 20. Rd1 {[%emt 0:12:54]} Rf7 {[%emt 0:00:
00]} 21. Kb1 {[%emt 0:02:59]} Qc4 {[%emt 0:01:04]} 22. Qe3 {[%emt 0:00:55]} Kb7
{[%emt 0:01:50]} 23. b3 {[%emt 0:00:08]} Qf4 {[%emt 0:01:17]} 24. Qc5 {[%emt 0:
00:00]} Qc7 {[%emt 0:01:16]} 25. Qb4+ {[%emt 0:01:10]} Ka8 {[%emt 0:01:11]} 26.
g3 {[%emt 0:02:46]} Bc6 {[%emt 0:01:27]} 27. Kb2 {[%emt 0:00:18]} Rd7 {[%emt 0:
00:00]} 28. Rf1 {[%emt 0:01:33]} Rd8 {[%emt 0:04:38]} 29. Qc5 {[%emt 0:01:16]}
Qd6 {[%emt 0:01:05]} 30. Qa5 {[%emt 0:00:38]} Rb8 {[%emt 0:01:32]} 31. Rf7 {
[%emt 0:00:35]} Rb7 {[%emt 0:00:21]} 32. Rxb7 {[%emt 0:00:36]} Kxb7 {[%emt 0:
00:00]} 33. Na4 {[%emt 0:00:12]} Bxa4 {[%emt 0:02:12]} 1/2-1/2

[Event "44th Chess Olympiad Open 2022"]
[Site "Chennai"]
[Date "2022.08.08"]
[Round "10.26"]
[White "Draskovic, Luka"]
[Black "Mhango, Banele"]
[Result "1/2-1/2"]
[WhiteElo "2503"]
[BlackElo "2238"]
[Annotator "RC"]
[PlyCount "100"]
[EventDate "2022.??.??"]
[TimeControl "60"]

1. Nf3 {[%emt 0:00:21]} Nf6 {[%emt 0:00:19]} 2. g3 {[%emt 0:00:26]} d5 {
[%emt 0:02:06]} 3. Bg2 {[%emt 0:01:46]} Bf5 {[%emt 0:01:54]} 4. c4 {[%emt 0:00:
00]} e6 {[%emt 0:03:53]} 5. Qb3 {[%emt 0:04:26]} Na6 {[%emt 0:04:31]} 6. cxd5 {
[%emt 0:11:25]} exd5 {[%emt 0:10:13]} 7. d3 {[%emt 0:11:48]} Nc5 {[%emt 0:00:
00]} 8. Qc2 {[%emt 0:00:23]} h6 {[%emt 0:05:17]} 9. O-O {[%emt 0:00:24]} Be7 {
[%emt 0:00:36]} 10. b3 {[%emt 0:01:38]} O-O {[%emt 0:03:31]} 11. Bb2 {[%emt 0:
00:00]} Ne6 {[%emt 0:04:10]} 12. Nbd2 {[%emt 0:00:21]} Bh7 {[%emt 0:00:35]} 13.
Nd4 {[%emt 0:11:32]} Nxd4 {[%emt 0:03:47]} 14. Bxd4 {[%emt 0:00:06]} a5 {
[%emt 0:02:50]} 15. Nf3 {[%emt 0:07:28]} c6 {[%emt 0:02:59]} 16. Rac1 {[%emt 0:
00:00]} Ne8 {[%emt 0:10:13]} 17. e4 {[%emt 0:04:50]} Nd6 {[%emt 0:05:50]} 18.
Qb2 {[%emt 0:02:55]} Ne8 {[%emt 0:09:27]} 19. Rfe1 {[%emt 0:06:25]} Bf6 {
[%emt 0:01:46]} 20. Bxf6 {[%emt 0:06:41]} Qxf6 {[%emt 0:01:29]} 21. e5 {
[%emt 0:01:18]} Qe7 {[%emt 0:00:10]} 22. Qc3 {[%emt 0:00:35]} Nc7 {[%emt 0:00:
00]} 23. Nd4 {[%emt 0:00:21]} Qb4 {[%emt 0:00:19]} 24. Bh3 {[%emt 0:02:06]} Na6
{[%emt 0:07:10]} 25. Bf5 {[%emt 0:02:45]} Qxc3 {[%emt 0:01:44]} 26. Bxh7+ {
[%emt 0:00:27]} Kxh7 {[%emt 0:00:05]} 27. Rxc3 {[%emt 0:00:03]} c5 {[%emt 0:00:
00]} 28. Nb5 {[%emt 0:01:35]} d4 {[%emt 0:00:05]} 29. Rc2 {[%emt 0:03:36]} Nb4
{[%emt 0:01:48]} 30. Rd2 {[%emt 0:00:06]} a4 {[%emt 0:03:43]} 31. bxa4 {
[%emt 0:01:43]} Rxa4 {[%emt 0:00:35]} 32. a3 {[%emt 0:00:19]} Nd5 {[%emt 0:00:
00]} 33. e6 {[%emt 0:00:53]} fxe6 {[%emt 0:00:26]} 34. Rxe6 {[%emt 0:00:09]}
Rd8 {[%emt 0:02:37]} 35. Kg2 {[%emt 0:02:52]} Rd7 {[%emt 0:00:56]} 36. Rc2 {
[%emt 0:01:46]} Ra5 {[%emt 0:01:59]} 37. a4 {[%emt 0:01:20]} b6 {[%emt 0:01:13]
} 38. Rc4 {[%emt 0:00:24]} Kg8 {[%emt 0:03:14]} 39. Kf1 {[%emt 0:01:36]} Kf8 {
[%emt 0:01:52]} 40. Rc6 {[%emt 0:01:57]} Ke7 {[%emt 0:03:15]} 41. Rg6 {[%emt 0:
00:00]} Kf7 {[%emt 0:01:28]} 42. Rc6 {[%emt 0:02:40]} Ke7 {[%emt 0:04:56]} 43.
Rg6 {[%emt 0:00:43]} Kf7 {[%emt 0:01:20]} 44. Rc6 {[%emt 0:00:06]} Ra8 {
[%emt 0:00:34]} 45. Nd6+ {[%emt 0:02:21]} Kf8 {[%emt 0:00:57]} 46. Nc8 {
[%emt 0:02:59]} Rb7 {[%emt 0:00:40]} 47. Rd6 {[%emt 0:00:59]} Rxc8 {[%emt 0:00:
00]} 48. Rxd5 {[%emt 0:00:11]} Ra8 {[%emt 0:00:17]} 49. Rd6 {[%emt 0:01:53]}
Kf7 {[%emt 0:01:55]} 50. Rc6 {[%emt 0:00:41]} Ra5 {[%emt 0:02:20]} 1/2-1/2

[Event "44th Chess Olympiad Open 2022"]
[Site "Chennai"]
[Date "2022.08.08"]
[Round "10.26"]
[White "Kobese, Watu"]
[Black "Blagojevic, Dragisa"]
[Result "1/2-1/2"]
[WhiteElo "2311"]
[BlackElo "2499"]
[Annotator "RC"]
[PlyCount "77"]
[EventDate "2022.??.??"]
[TimeControl "60"]

1. e4 {[%emt 0:00:07]} e5 {[%emt 0:00:08]} 2. Nf3 {[%emt 0:00:07]} Nc6 {
[%emt 0:00:12]} 3. Bc4 {[%emt 0:00:11]} Bc5 {[%emt 0:00:22]} 4. c3 {[%emt 0:00:
00]} Nf6 {[%emt 0:00:06]} 5. d4 {[%emt 0:00:45]} exd4 {[%emt 0:00:10]} 6. b4 {
[%emt 0:00:22]} Be7 {[%emt 0:02:03]} 7. e5 {[%emt 0:06:03]} Ne4 {[%emt 0:03:03]
} 8. b5 {[%emt 0:02:23]} Na5 {[%emt 0:07:14]} 9. Bd3 {[%emt 0:00:52]} Nc5 {
[%emt 0:06:30]} 10. cxd4 {[%emt 0:12:48]} Nxd3+ {[%emt 0:02:08]} 11. Qxd3 {
[%emt 0:00:07]} d6 {[%emt 0:17:23]} 12. Bd2 {[%emt 0:08:55]} b6 {[%emt 0:03:35]
} 13. O-O {[%emt 0:11:53]} O-O {[%emt 0:09:21]} 14. Bxa5 {[%emt 0:13:42]} bxa5
{[%emt 0:00:00]} 15. Qe4 {[%emt 0:01:06]} Rb8 {[%emt 0:00:00]} 16. Nc3 {
[%emt 0:04:38]} Bb7 {[%emt 0:00:00]} 17. Qe3 {[%emt 0:04:56]} Re8 {[%emt 0:00:
00]} 18. Rfd1 {[%emt 0:03:53]} Bf8 {[%emt 0:01:08]} 19. a4 {[%emt 0:02:32]} Qd7
{[%emt 0:03:20]} 20. Qf4 {[%emt 0:06:20]} h6 {[%emt 0:04:01]} 21. Ne4 {[%emt 0:
00:00]} a6 {[%emt 0:03:37]} 22. bxa6 {[%emt 0:02:31]} Bxa6 {[%emt 0:00:09]} 23.
Qxh6 {[%emt 0:00:20]} Qf5 {[%emt 0:11:32]} 24. Qe3 {[%emt 0:00:34]} Bb7 {
[%emt 0:02:35]} 25. Ng3 {[%emt 0:01:55]} Qe6 {[%emt 0:04:07]} 26. d5 {[%emt 0:
00:00]} Bxd5 {[%emt 0:03:16]} 27. Ng5 {[%emt 0:01:26]} Qxe5 {[%emt 0:00:13]}
28. Qxe5 {[%emt 0:00:13]} Rxe5 {[%emt 0:00:05]} 29. f4 {[%emt 0:00:06]} Rxg5 {
[%emt 0:00:48]} 30. fxg5 {[%emt 0:00:14]} Bb3 {[%emt 0:02:59]} 31. Rdc1 {
[%emt 0:04:50]} c5 {[%emt 0:00:55]} 32. Ne4 {[%emt 0:00:14]} Rb4 {[%emt 0:00:
00]} 33. Re1 {[%emt 0:03:52]} d5 {[%emt 0:01:13]} 34. Nd2 {[%emt 0:00:43]} Bxa4
{[%emt 0:00:31]} 35. Reb1 {[%emt 0:00:09]} Bc2 {[%emt 0:02:22]} 36. Rc1 {
[%emt 0:01:08]} Ba4 {[%emt 0:01:08]} 37. Rcb1 {[%emt 0:00:08]} Bc2 {[%emt 0:00:
00]} 38. Rc1 {[%emt 0:00:33]} Ba4 {[%emt 0:00:23]} 39. Rcb1 {[%emt 0:00:39]}
1/2-1/2

[Event "44th Chess Olympiad Open 2022"]
[Site "Chennai"]
[Date "2022.08.08"]
[Round "10.26"]
[White "Barrish, Daniel"]
[Black "Djukic, Nikola"]
[Result "0-1"]
[WhiteElo "2283"]
[BlackElo "2526"]
[Annotator "RC"]
[PlyCount "68"]
[EventDate "2022.??.??"]
[TimeControl "60"]

1. d4 {[%emt 0:00:12]} Nf6 {[%emt 0:00:06]} 2. c4 {[%emt 0:00:11]} g6 {[%emt 0:
00:00]} 3. Nc3 {[%emt 0:00:12]} Bg7 {[%emt 0:00:06]} 4. e4 {[%emt 0:00:08]} d6
{[%emt 0:00:05]} 5. f3 {[%emt 0:00:07]} O-O {[%emt 0:00:12]} 6. Be3 {[%emt 0:
00:00]} c5 {[%emt 0:00:47]} 7. Nge2 {[%emt 0:00:18]} Nc6 {[%emt 0:00:47]} 8. d5
{[%emt 0:00:14]} Ne5 {[%emt 0:00:07]} 9. Ng3 {[%emt 0:00:08]} h5 {[%emt 0:00:
00]} 10. Be2 {[%emt 0:00:59]} h4 {[%emt 0:01:53]} 11. Nf1 {[%emt 0:00:15]} e6 {
[%emt 0:00:33]} 12. Bg5 {[%emt 0:01:25]} exd5 {[%emt 0:00:25]} 13. Nxd5 {
[%emt 0:02:35]} Be6 {[%emt 0:00:19]} 14. Nfe3 {[%emt 0:01:45]} Nxd5 {[%emt 0:
00:00]} 15. Bxd8 {[%emt 0:00:54]} Nxe3 {[%emt 0:00:06]} 16. Qb3 {[%emt 0:04:27]
} Nxg2+ {[%emt 0:00:56]} 17. Kf2 {[%emt 0:03:31]} Nf4 {[%emt 0:01:20]} 18. Be7
{[%emt 0:06:36]} Nxe2 {[%emt 0:00:28]} 19. Bxf8 {[%emt 0:03:30]} Rxf8 {[%emt 0:
00:00]} 20. Qxb7 {[%emt 0:03:08]} Nd4 {[%emt 0:18:01]} 21. b3 {[%emt 0:11:58]}
f5 {[%emt 0:05:37]} 22. exf5 {[%emt 0:03:45]} Bxf5 {[%emt 0:01:19]} 23. Rhf1 {
[%emt 0:13:55]} Nexf3 {[%emt 0:10:06]} 24. Qd5+ {[%emt 0:16:59]} Be6 {[%emt 0:
00:00]} 25. Qxd6 {[%emt 0:00:35]} Nd2+ {[%emt 0:04:28]} 26. Kg1 {[%emt 0:03:27]
} Nxf1 {[%emt 0:00:48]} 27. Re1 {[%emt 0:03:17]} Bh3 {[%emt 0:06:38]} 28. Qd5+
{[%emt 0:00:48]} Kh8 {[%emt 0:00:53]} 29. Re4 {[%emt 0:03:34]} Nf3+ {[%emt 0:
00:00]} 30. Kh1 {[%emt 0:00:06]} N1d2 {[%emt 0:01:28]} 31. Re3 {[%emt 0:00:54]}
Bg4 {[%emt 0:07:03]} 32. h3 {[%emt 0:02:11]} Nf1 {[%emt 0:04:31]} 33. hxg4 {
[%emt 0:03:03]} Nxe3 {[%emt 0:00:09]} 34. Qxc5 {[%emt 0:00:23]} Nd4 {[%emt 0:
00:00]} 0-1

[Event "44th Chess Olympiad Open 2022"]
[Site "Chennai"]
[Date "2022.08.08"]
[Round "10.27"]
[White "Borisek, Jure"]
[Black "Olson, Hamish"]
[Result "1-0"]
[WhiteElo "2577"]
[BlackElo "2343"]
[Annotator "RC"]
[PlyCount "65"]
[EventDate "2022.??.??"]
[TimeControl "60"]

1. e4 {[%emt 0:00:03]} e5 {[%emt 0:00:09]} 2. Nf3 {[%emt 0:00:06]} Nc6 {
[%emt 0:00:07]} 3. Bb5 {[%emt 0:00:06]} a6 {[%emt 0:00:08]} 4. Ba4 {[%emt 0:00:
00]} Nf6 {[%emt 0:00:10]} 5. O-O {[%emt 0:00:18]} Be7 {[%emt 0:00:12]} 6. Re1 {
[%emt 0:00:14]} b5 {[%emt 0:00:14]} 7. Bb3 {[%emt 0:00:04]} O-O {[%emt 0:00:18]
} 8. a4 {[%emt 0:00:09]} b4 {[%emt 0:00:29]} 9. a5 {[%emt 0:00:51]} d6 {
[%emt 0:01:59]} 10. c3 {[%emt 0:00:47]} bxc3 {[%emt 0:05:11]} 11. dxc3 {
[%emt 0:06:31]} h6 {[%emt 0:07:43]} 12. Nbd2 {[%emt 0:04:09]} Nh7 {[%emt 0:00:
00]} 13. Nf1 {[%emt 0:07:55]} Ng5 {[%emt 0:03:03]} 14. Bd5 {[%emt 0:01:00]} Bd7
{[%emt 0:06:17]} 15. Ng3 {[%emt 0:03:45]} Nxf3+ {[%emt 0:07:19]} 16. Qxf3 {
[%emt 0:01:53]} Bg5 {[%emt 0:02:00]} 17. b4 {[%emt 0:00:38]} Bxc1 {[%emt 0:00:
00]} 18. Raxc1 {[%emt 0:00:03]} g6 {[%emt 0:01:18]} 19. Qe2 {[%emt 0:11:48]}
Kg7 {[%emt 0:02:11]} 20. Rf1 {[%emt 0:01:14]} Qb8 {[%emt 0:12:39]} 21. Kh1 {
[%emt 0:10:26]} Qa7 {[%emt 0:04:36]} 22. h4 {[%emt 0:06:27]} Rae8 {[%emt 0:00:
00]} 23. h5 {[%emt 0:00:06]} Nd8 {[%emt 0:04:51]} 24. f4 {[%emt 0:03:42]} exf4
{[%emt 0:04:23]} 25. Rxf4 {[%emt 0:00:20]} Be6 {[%emt 0:02:58]} 26. Rd1 {
[%emt 0:06:56]} Bxd5 {[%emt 0:02:19]} 27. Rxd5 {[%emt 0:00:04]} Ne6 {[%emt 0:
00:00]} 28. Rf1 {[%emt 0:00:06]} c6 {[%emt 0:01:13]} 29. Rxd6 {[%emt 0:02:20]}
Qe7 {[%emt 0:00:52]} 30. Qg4 {[%emt 0:00:04]} Ng5 {[%emt 0:03:58]} 31. Rxc6 {
[%emt 0:01:44]} Rd8 {[%emt 0:00:33]} 32. Qf4 {[%emt 0:01:29]} Ne6 {[%emt 0:00:
00]} 33. Qe5+ {[%emt 0:00:22]} 1-0